{"text_format":"3","workbook":"xlsx","n_sheets":15,"sheets":["Свод","По направлениям","2.1 (2470)","2.2 (2121)","2.3 (884)","2.4 (852)","2.5 (3407)","2.6 (2436)","2.7 (611)","2.8 (801)","2.9 (1448)","2.10 (500)","2.11 (125)","2.12 (283)","2.13 (1733)"],"read":"whole","date_system":"1900"}

{"sheet":"Свод","index":0,"n_rows":6,"n_cols":2,"rows_kept":6}
["Кандидаты прошедшие анкетирование",17671]
["Кандидатов, не приступивших к анкетированию (основу выбрали, на вопросы анкеты не отвечали)",2431]
["Кандидатов, не приступивших к анкетированию (основу не выбрали, на вопросы анкеты не отвечали)",12]
[null,{"$f":"SUM(B1:B3)","v":20114}]
[]
["Выбрали внебюджетную основу обучения",2475]

{"sheet":"По направлениям","index":1,"n_rows":15,"n_cols":3,"rows_kept":15}
["№ п\\п","Приоритетное направление","Кол-во"]
["2.1","Программа ПК по совершенствованию предметной компетентности учителей (педагогов);",2470]
["2.2","Программа ПК по совершенствованию методической компетентности в преподавании предметной области;",2121]
["2.3","Программа ПК по совершенствованию психолого-педагогической компетентности учителей (педагогов);",884]
["2.4","Программа ПК по совершенствованию коммуникативной компетентности учителей (педагогов);",852]
["2.5","Программа ПК, в которую включены модули, одновременно отражающие ключевые направления профессионального развития учителя (педагога): предметное, методическое, психолого-педагогическое, коммуникативное;",3407]
["2.6","Программа ПК, которая формирует у учителя(педагога) навыки развития у обучающихся метапредметных умений (например, креативность, критическое мышление, умение решать проблемы и др.);",2436]
["2.7","Программа ПК, которая формирует у учителя (педагога) навыки работы в поликультурной или многоязычной среде;",611]
["2.8","Программа ПК, которая формирует у учителя (педагога) навыки в области цифровых технологий применительно к работе учителя (педагога);",801]
["2.9","Программа ПК, которая формирует у учителя (педагога) навыки обучения детей с ограниченными возможностями здоровья (ОВЗ);",1448]
["2.10","Программа ПК, которая развивает у учителя навыки оценивания обучающихся;",500]
["2.11","Программа ПК по подготовке тьюторов в области цифровых технологий;\tПрограмма ПК по подготовке тьюторов в области цифровых технологий.",125]
["2.12","Дистанционная программа ПК для отдельных категорий участников: старших воспитателей, учителей обществознания, географии, педагогов ДОД;",283]
["2.13","Иное;",1733]
[null,"Всего:",{"$f":"SUM(C2:C14)","v":17671}]

{"sheet":"2.1 (2470)","index":2,"n_rows":88,"n_cols":8,"rows_kept":88,"merged":[[39,0,39,7],[53,0,53,7],[69,0,69,7],[73,0,73,5]]}
["2.1 Программа ПК по совершенствованию предметной компетентности учителей (педагогов);"]
["№","Предмет","Всего","ВКК","I КК","II КК","без КК","N"]
[1,"Директор  ",{"$f":"SUM(D3:H3)","v":23},9,7,null,null,7]
[2,"Заместитель директора  ",17,3,10,null,2,2]
[3,"Заместитель",17,7,7,null,null,3]
[7,"Педагог-библиотекарь  ",5,1,2,null,1,1]
[8,"Педагог-организатор  ",6,null,2,null,1,3]
[9,"Педагог-психолог  ",0]
[10,"Педагог доп. образования",3,1,1,null,null,1]
[12,"Социальный педагог  ",0]
[13,"Воспитатель",20,null,9,1,2,8]
[15,"Специалист  ",2,{"$nulls":3},2]
[21,"Учитель-дефектолог  ",1,{"$nulls":3},1]
[26,"Учитель (предмет не указан)",158,6,18,3,52,79]
[27,"Начальные классы  ",230,58,138,5,9,20]
[28,"Рус.яз. и лит-ра  ",200,55,108,3,15,19]
[29,"Тат.яз и лит  ",155,38,79,3,6,29]
[31,"Чувашский язык  ",5,1,4]
[33,"Анг.яз.  ",111,7,57,8,12,27]
[34,"Франц.яз.  ",2,1,1]
[35,"Немец.яз.  ",5,2,1,null,1,1]
[36,"Математика  ",141,15,98,2,10,16]
[37,"Информатика и ИКТ  ",52,10,28,2,4,8]
[38,"История и обществознание  ",105,20,59,2,5,19]
[39,"География  ",48,6,32,1,4,5]
[40,"Физика  ",41,7,19,2,7,6]
[41,"Химия  ",31,9,13,1,3,5]
[42,"Биология  ",48,15,28,null,1,4]
[43,"ИЗО  ",24,9,10,1,null,4]
[44,"Музыка  ",38,10,21,1,2,4]
[45,"Технология  ",68,10,38,4,4,12]
[46,"ОБЖ  ",16,2,7,null,1,6]
[47,"Преподаватель-организатор ОБЖ",9,1,5,null,1,2]
[48,"Физ-ра  ",107,18,56,3,8,22]
[51,"ОРКСЭ  ",10,null,7,null,1,2]
[52,"Классный час",2,{"$nulls":4},2]
[53,"Музыкальный руководитель",1,null,1]
[54,"N",{"$f":"SUM(D38:H38)","v":181},49,94,4,16,18]
[null,null,{"$f":"SUM(C3:C38)","v":{"v":1882,"d":"1,882"}}]
["ДОО"]
["№","Предмет","Всего","ВКК","I КК","II КК","без КК","N"]
[1,"Заведующий   ",{"$f":"SUM(D42:H42)","v":7},null,4,null,3]
[6,"Воспитатель  ",{"$f":"SUM(D43:H43)","v":238},23,99,3,39,74]
[7,"Дошкольник",1,{"$nulls":3},1]
[8,"Инструктор по физ.культуре  ",11,2,3,null,1,5]
[11,"Методист  ",1,{"$nulls":4},1]
[12,"Муз. руководитель   ",40,10,20,null,4,6]
[15,"Педагог-психолог  ",3,1,null,null,2]
[20,"Учитель",1,{"$nulls":4},1]
[21,"Учитель-дефектолог",1,null,1]
[24,"Учитель-логопед  ",17,1,6,1,3,6]
[25,"N",3,null,1,null,2]
[null,null,{"$f":"SUM(C42:C52)","v":323}]
["ДОД"]
["№","Предмет","Всего","ВКК","I КК","II КК","без КК","N"]
[1,"Директор  ",{"$f":"SUM(D56:H56)","v":2},null,1,null,null,1]
[2,"Заместитель  ",{"$f":"SUM(D57:H57)","v":1},{"$nulls":4},1]
[4,"Заведующий  ",6,2,2,null,1,1]
[6,"Заведующий структурного подразделения",1,{"$nulls":4},1]
[8,"Концертмейстер  ",3,null,1,null,null,2]
[9,"Методист  ",1,1]
[10,"Педагог доп.образования  ",64,15,30,1,4,14]
[13,"Преподаватель  ",27,7,12,null,4,4]
[14,"Преподаватель ДМШ  ",8,null,5,null,1,2]
[15,"Преподаватель ДХШ  ",1,{"$nulls":4},1]
[16,"Преподаватель ДШИ",6,null,5,null,1]
[19,"N",3,null,1,null,null,2]
[20,"Воспитатель",1,{"$nulls":4},1]
[null,null,{"$f":"SUM(C56:C68)","v":124}]
["Районные учреждения образования",null,null,"ИМЦ, РОО"]
["№","Предмет","Всего","ВКК","I КК","II КК","без КК","N"]
[5,"Старший методист",1,null,1]
[null,null,1]
["ПО"]
["№","Предмет","Всего","ВКК","I КК","II КК","без КК","N"]
[6,"Заведующий отделением  ",{"$f":"SUM(D76:H76)","v":2},1,null,null,1]
[8,"Заведующий филиалом",1,{"$nulls":4},1]
[9,"Заместитель",1,1]
[10,"Заместитель директора ",4,{"$nulls":3},3,1]
[12,"Мастер производ.обучения ",11,4,3,null,null,4]
[13,"Методист ",2,null,1,null,1]
[19,"Педагог-психолог  ",1,{"$nulls":3},1]
[21,"Преподаватель  ",115,31,32,6,19,27]
[null,"Учитель",1,{"$nulls":4},1]
[30,"N",{"$f":"SUM(D85:H85)","v":1},{"$nulls":3},1]
[31,"Концертмейстер",{"$f":"SUM(D86:H86)","v":1},1]
[null,null,{"$f":"SUM(C76:C86)","v":140}]
[null,"ИТОГО",2470]

{"sheet":"2.2 (2121)","index":3,"n_rows":90,"n_cols":8,"rows_kept":90,"merged":[[0,0,0,7],[38,0,38,7],[52,0,52,7],[66,0,66,7],[71,0,71,5],[85,0,85,7]]}
["2.2 Программа ПК по совершенствованию методической компетентности в преподавании предметной области;"]
["№","Предмет","Всего","ВКК","I КК","II КК","без КК","N"]
[1,"Директор  ",{"$f":"SUM(D3:H3)","v":20},3,13,1,null,3]
[2,"Заместитель директора  ",23,5,14,null,2,2]
[3,"Заместитель",34,8,23,null,null,3]
[7,"Педагог-библиотекарь  ",8,null,2,null,null,6]
[8,"Педагог-организатор  ",3,null,2,null,null,1]
[9,"Педагог-психолог  ",3,null,1,null,2]
[10,"Педагог доп. образования",5,null,1,null,2,2]
[13,"Воспитатель",6,null,1,null,2,3]
[20,"Тьютор",1,null,1]
[21,"Учитель-дефектолог  ",1,{"$nulls":3},1]
[23,"Учитель-дефектолог (сурдопедагог)",1,null,1]
[26,"Учитель (предмет не указан)",117,6,21,3,35,52]
[27,"Начальные классы  ",188,50,95,2,13,28]
[28,"Рус.яз. и лит-ра  ",157,43,87,2,7,18]
[29,"Тат.яз и лит  ",192,41,121,6,9,15]
[31,"Чувашский язык  ",3,null,3]
[33,"Анг.яз.  ",131,25,65,5,14,22]
[34,"Франц.яз.  ",1,null,1]
[35,"Немец.яз.  ",3,1,2]
[36,"Математика  ",135,14,83,4,10,24]
[37,"Информатика и ИКТ  ",23,2,12,null,2,7]
[38,"История и обществознание  ",85,10,53,null,11,11]
[39,"География  ",50,9,28,1,5,7]
[40,"Физика  ",41,11,22,2,1,5]
[41,"Химия  ",30,7,19,null,2,2]
[42,"Биология  ",60,18,31,null,4,7]
[43,"ИЗО  ",17,7,5,1,1,3]
[44,"Музыка  ",29,7,13,null,1,8]
[45,"Технология  ",46,7,29,2,2,6]
[46,"ОБЖ  ",11,3,4,1,2,1]
[47,"Преподаватель-организатор ОБЖ",7,1,3,null,1,2]
[48,"Физ-ра  ",72,17,42,1,2,10]
[51,"ОРКСЭ  ",2,null,2]
[54,"N",146,37,77,3,16,13]
[54,"Руководитель физического воспитания",{"$f":"SUM(D37:H37)","v":1},{"$nulls":4},1]
[null,null,{"$f":"SUM(C3:C37)","v":{"v":1652,"d":"1,652"}}]
["ДОО"]
["№","Предмет","Всего","ВКК","I КК","II КК","без КК","N"]
[1,"Заведующий   ",{"$f":"SUM(D41:H41)","v":8},1,3,1,3]
[3,"Заместитель",{"$f":"SUM(D42:H42)","v":1},1]
[6,"Воспитатель  ",157,8,72,4,34,39]
[8,"Инструктор по физ.культуре  ",14,1,6,null,1,6]
[11,"Методист  ",1,null,1]
[12,"Муз. руководитель   ",29,7,13,null,6,3]
[13,"Педагог дополнительного образования",1,{"$nulls":4},1]
[15,"Педагог-психолог  ",3,{"$nulls":3},1,2]
[19,"Старший воспитатель  ",7,1,2,null,2,2]
[24,"Учитель-логопед  ",5,1,1,null,2,1]
[25,"N",2,null,1,null,1]
[null,null,{"$f":"SUM(C41:C51)","v":228}]
["ДОД"]
["№","Предмет","Всего","ВКК","I КК","II КК","без КК","N"]
[1,"Директор  ",{"$f":"SUM(D55:H55)","v":1},{"$nulls":4},1]
[2,"Заместитель  ",{"$f":"SUM(D56:H56)","v":2},{"$nulls":3},1,1]
[3,"Заместитель директора",2,{"$nulls":3},2]
[5,"Заведующий отделением",1,{"$nulls":4},1]
[9,"Методист  ",13,1,2,null,3,7]
[10,"Педагог доп.образования  ",15,3,2,null,4,6]
[11,"Педагог-организатор  ",1,null,1]
[13,"Преподаватель  ",11,4,5,null,1,1]
[14,"Преподаватель ДМШ  ",7,1,5,null,null,1]
[16,"Преподаватель ДШИ",10,2,3,null,4,1]
[19,"N",1,{"$nulls":4},1]
[null,null,{"$f":"SUM(C55:C65)","v":64}]
["Районные учреждения образования",null,null,"ИМЦ, РОО"]
["№","Предмет","Всего","ВКК","I КК","II КК","без КК","N"]
[4,"Методист ",{"$f":"SUM(D69:H69)","v":25},null,10,null,6,9]
[5,"Старший методист",1,1,1,1,1,1]
[null,null,26]
["ПО"]
["№","Предмет","Всего","ВКК","I КК","II КК","без КК","N"]
[6,"Заведующий отделением  ",{"$f":"SUM(D74:H74)","v":5},null,2,null,null,3]
[9,"Заместитель",1,{"$nulls":4},1]
[10,"Заместитель директора ",7,{"$nulls":3},2,5]
[12,"Мастер производ.обучения ",10,1,2,null,2,5]
[13,"Методист ",6,4,null,null,2]
[21,"Преподаватель  ",115,19,51,2,11,32]
[null,"Учитель",2,{"$nulls":3},1,1]
[25,"Старший мастер",1,{"$nulls":4},1]
[28,"Преподаватель физического воспитания",1,null,1]
[30,"N",1,{"$nulls":3},1]
[31,"Концертмейстер",1,1]
[null,null,{"$f":"SUM(C74:C84)","v":150}]
["Прочие\n (детские дома, центры психолого-медико-социального сопровождения, межшкольный учебный комбинат, вечерняя школа закрытого типа)"]
["№","Предмет","Всего","ВКК","I КК","II КК","без КК","N"]
[3,"Замиститель",1,null,1]
[null,null,1]
[null,null,2121]

{"sheet":"2.3 (884)","index":4,"n_rows":85,"n_cols":8,"rows_kept":85,"merged":[[0,0,0,7],[35,0,35,7],[47,0,47,7],[61,0,61,7],[66,0,66,5],[78,0,78,7]]}
["2.3 Программа ПК по совершенствованию психолого-педагогической компетентности учителей (педагогов)"]
["№","Предмет","Всего","ВКК","I КК","II КК","без КК","N"]
[1,"Директор  ",{"$f":"SUM(D3:H3)","v":12},3,5,null,2,2]
[2,"Заместитель директора  ",8,null,4,null,3,1]
[3,"Заместитель",13,3,8,1,null,1]
[4,"Заведующий",1,{"$nulls":3},1]
[7,"Педагог-библиотекарь  ",7,1,3,null,null,3]
[8,"Педагог-организатор  ",6,1,2,null,1,2]
[9,"Педагог-психолог  ",37,4,11,null,9,13]
[10,"Педагог доп. образования",4,null,2,null,null,2]
[12,"Социальный педагог  ",6,null,3,null,2,1]
[13,"Воспитатель",24,2,9,3,2,8]
[20,"Тьютор",1,{"$nulls":3},1]
[21,"Учитель-дефектолог  ",1,null,1]
[25,"Учитель-логопед  ",1,null,1]
[26,"Учитель (предмет не указан)",40,1,7,1,16,15]
[27,"Начальные классы  ",57,7,32,5,5,8]
[28,"Рус.яз. и лит-ра  ",12,1,9,1,null,1]
[29,"Тат.яз и лит  ",12,1,6,1,1,3]
[33,"Анг.яз.  ",9,null,5,1,1,2]
[36,"Математика  ",13,1,7,null,3,2]
[37,"Информатика и ИКТ  ",1,null,1]
[38,"История и обществознание  ",7,null,5,null,null,2]
[39,"География  ",3,null,2,null,null,1]
[40,"Физика  ",1,null,1]
[42,"Биология  ",4,2,2]
[43,"ИЗО  ",2,1,1]
[44,"Музыка  ",2,null,2]
[45,"Технология  ",6,null,4,null,1,1]
[46,"ОБЖ  ",2,null,null,1,null,1]
[47,"Преподаватель-организатор ОБЖ",1,null,1]
[48,"Физ-ра  ",8,2,1,null,2,3]
[52,"Классный час",2,{"$nulls":3},1,1]
[54,"N",17,7,8,null,null,2]
[null,null,{"$f":"SUM(C3:C34)","v":320}]
["ДОО"]
["№","Предмет","Всего","ВКК","I КК","II КК","без КК","N"]
[1,"Заведующий   ",{"$f":"SUM(D38:H38)","v":29},3,9,null,7,10]
[5,"Заместитель заведующего",{"$f":"SUM(D39:H39)","v":1},{"$nulls":4},1]
[6,"Воспитатель  ",328,26,169,5,52,76]
[8,"Инструктор по физ.культуре  ",8,null,5,null,null,3]
[12,"Муз. руководитель   ",20,4,9,2,2,3]
[15,"Педагог-психолог  ",35,4,13,null,7,11]
[19,"Старший воспитатель  ",11,1,5,null,2,3]
[24,"Учитель-логопед  ",6,2,2,null,null,2]
[25,"N",6,2,2,null,1,1]
[null,null,{"$f":"SUM(C38:C46)","v":444}]
["ДОД"]
["№","Предмет","Всего","ВКК","I КК","II КК","без КК","N"]
[1,"Директор  ",{"$f":"SUM(D50:H50)","v":2},2]
[2,"Заместитель  ",{"$f":"SUM(D51:H51)","v":3},2,{"$nulls":3},1]
[3,"Заместитель директора",1,null,1]
[4,"Заведующий  ",1,{"$nulls":4},1]
[8,"Концертмейстер  ",2,2]
[9,"Методист  ",1,null,1]
[10,"Педагог доп.образования  ",31,7,12,null,4,8]
[12,"Педагог-психолог  ",1,{"$nulls":4},1]
[13,"Преподаватель  ",3,null,2,null,null,1]
[14,"Преподаватель ДМШ  ",17,4,8,null,1,4]
[16,"Преподаватель ДШИ",1,null,1]
[null,null,{"$f":"SUM(C50:C60)","v":63}]
["Районные учреждения образования",null,null,"ИМЦ, РОО"]
["№","Предмет","Всего","ВКК","I КК","II КК","без КК","N"]
[3,"Педагог-психолог ",1,{"$nulls":4},1]
[4,"Методист ",1,null,1]
[null,null,2]
["ПО"]
["№","Предмет","Всего","ВКК","I КК","II КК","без КК","N"]
[4,"Заведующий  ",{"$f":"SUM(D69:H69)","v":1},1]
[10,"Заместитель директора ",2,{"$nulls":4},2]
[12,"Мастер производ.обучения ",5,null,2,null,null,3]
[16,"Педагог доп.образования  ",1,{"$nulls":4},1]
[19,"Педагог-психолог  ",2,null,1,null,null,1]
[21,"Преподаватель  ",35,2,13,null,7,13]
[null,"Учитель",2,null,null,1,1]
[28,"Руководитель физического воспитания",1,null,1]
[30,"N",1,{"$nulls":3},1]
[null,null,{"$f":"SUM(C69:C77)","v":50}]
["Прочие\n (детские дома, центры психолого-медико-социального сопровождения, межшкольный учебный комбинат, вечерняя школа закрытого типа)"]
["№","Предмет","Всего","ВКК","I КК","II КК","без КК","N"]
[1,"Воспитатель  ",2,{"$nulls":3},1,1]
[10,"Педагог-психолог  ",2,1,{"$nulls":3},1]
[18,"Заведующий отделением",1,null,1]
[null,null,5]
[null,null,884]

{"sheet":"2.4 (852)","index":5,"n_rows":82,"n_cols":8,"rows_kept":82,"merged":[[0,0,0,7],[33,0,33,7],[46,0,46,7],[58,0,58,7],[64,0,64,7],[77,0,77,7]]}
["2.4 Программа ПК по совершенствованию коммуникативной компетентности учителей (педагогов);"]
["№","Предмет","Всего","ВКК","I КК","II КК","без КК","N"]
[1,"Директор  ",{"$f":"SUM(D3:H3)","v":19},3,10,null,2,4]
[2,"Заместитель директора  ",9,null,3,null,2,4]
[3,"Заместитель",8,2,5,null,null,1]
[7,"Педагог-библиотекарь  ",11,2,2,1,null,6]
[8,"Педагог-организатор  ",4,null,2,null,1,1]
[9,"Педагог-психолог  ",1,null,1]
[10,"Педагог доп. образования",3,null,1,null,1,1]
[13,"Воспитатель",21,1,11,null,3,6]
[14,"Старший воспитатель",1,1]
[23,"Учитель-дефектолог (сурдопедагог)",1,null,1]
[26,"Учитель (предмет не указан)",37,1,9,null,7,20]
[27,"Начальные классы  ",65,6,49,null,3,7]
[28,"Рус.яз. и лит-ра  ",16,6,8,null,1,1]
[29,"Тат.яз и лит  ",86,9,67,2,4,4]
[33,"Анг.яз.  ",37,5,20,2,3,7]
[35,"Немец.яз.  ",3,null,2,null,null,1]
[36,"Математика  ",14,1,7,null,2,4]
[37,"Информатика и ИКТ  ",2,null,2]
[38,"История и обществознание  ",14,1,10,null,null,3]
[39,"География  ",5,2,3]
[40,"Физика  ",4,null,2,1,null,1]
[41,"Химия  ",1]
[42,"Биология  ",7,4,2,null,null,1]
[43,"ИЗО  ",1,1]
[44,"Музыка  ",5,null,3,null,null,2]
[45,"Технология  ",10,2,7,null,null,1]
[46,"ОБЖ  ",4,2,1,null,null,1]
[48,"Физ-ра  ",11,null,9,null,null,2]
[51,"ОРКСЭ  ",1,null,1]
[54,"N",40,5,23,2,2,8]
[null,null,{"$f":"SUM(C3:C32)","v":441}]
["ДОО"]
["№","Предмет","Всего","ВКК","I КК","II КК","без КК","N"]
[1,"Заведующий   ",{"$f":"SUM(D36:H36)","v":12},null,4,null,3,5]
[5,"Заместитель заведующего",{"$f":"SUM(D37:H37)","v":1},{"$nulls":3},1]
[6,"Воспитатель  ",309,39,143,3,53,71]
[8,"Инструктор по физ.культуре  ",4,1,1,null,2]
[12,"Муз. руководитель   ",14,3,8,null,3]
[15,"Педагог-психолог  ",3,null,1,null,null,2]
[19,"Старший воспитатель  ",2,{"$nulls":3},1,1]
[24,"Учитель-логопед  ",2,null,1,null,1]
[25,"N",4,null,1,null,1,2]
[26,"Ведущий специалист",1,{"$nulls":3},1]
[null,null,{"$f":"SUM(C36:C45)","v":352}]
["ДОД"]
["№","Предмет","Всего","ВКК","I КК","II КК","без КК","N"]
[1,"Директор  ",{"$f":"SUM(D49:H49)","v":1},null,1]
[4,"Заведующий  ",{"$f":"SUM(D50:H50)","v":1},{"$nulls":4},1]
[8,"Концертмейстер  ",{"$f":"SUM(D51:H51)","v":1},null,1]
[9,"Методист  ",{"$f":"SUM(D51:H51)","v":1},{"$nulls":4},1]
[10,"Педагог доп.образования  ",{"$f":"SUM(D53:H53)","v":12},3,5,null,2,2]
[13,"Преподаватель  ",{"$f":"SUM(D54:H54)","v":2},null,2]
[14,"Преподаватель ДМШ  ",{"$f":"SUM(D55:H55)","v":1},null,1]
[16,"Преподаватель ДШИ",{"$f":"SUM(D56:H56)","v":2},1,{"$nulls":3},1]
[20,"Специалист",{"$f":"SUM(D57:H57)","v":2},null,1,null,null,1]
[null,null,{"$f":"SUM(C49:C57)","v":23}]
["Районные учреждения образования"]
["№","Предмет","Всего","ВКК","I КК","II КК","без КК","N"]
[2,"Заместитель ",1,{"$nulls":3},1]
[4,"Методист ",2,{"$nulls":4},2]
[6,"Специалист ",1,null,1]
[null,null,4]
["ПО"]
["№","Предмет","Всего","ВКК","I КК","II КК","без КК","N"]
[6,"Заведующий отделением  ",{"$f":"SUM(D67:H67)","v":1},{"$nulls":3},1]
[9,"Заместитель",2,{"$nulls":3},1,1]
[10,"Заместитель директора ",3,1,null,null,1,1]
[12,"Мастер производ.обучения ",3,{"$nulls":3},2,1]
[13,"Методист ",1,{"$nulls":4},1]
[16,"Педагог доп.образования  ",1,null,1]
[18,"Педагог-организатор  ",1,{"$nulls":3},1]
[19,"Педагог-психолог  ",1,{"$nulls":3},1]
[21,"Преподаватель  ",17,2,4,1,4,6]
[31,"Преподаватель-организатор ОБЖ",1,{"$nulls":4},1]
[null,null,{"$f":"SUM(C67:C76)","v":31}]
["Прочие\n (детские дома, центры психолого-медико-социального сопровождения, межшкольный учебный комбинат, вечерняя школа закрытого типа)"]
["№","Предмет","Всего","ВКК","I КК","II КК","без КК","N"]
[1,"Воспитатель  ",1,{"$nulls":3},1]
[null,null,1]
[null,null,852]

{"sheet":"2.5 (3407)","index":6,"n_rows":108,"n_cols":8,"rows_kept":108,"merged":[[0,0,0,7],[41,0,41,7],[58,0,58,7],[78,0,78,7],[83,0,83,5],[100,0,100,7]]}
["2.5 Программа ПК, в которую включены модули, одновременно отражающие ключевые направления профессионального развития учителя (педагога): предметное, методическое, психолого-педагогическое, коммуникативное;"]
["№","Предмет","Всего","ВКК","I КК","II КК","без КК","N"]
[1,"Директор  ",{"$f":"SUM(D3:H3)","v":55},12,28,1,5,9]
[2,"Заместитель директора  ",50,5,25,null,12,8]
[3,"Заместитель",44,18,15,1,1,9]
[6,"Заведующий филиалом",2,null,2]
[7,"Педагог-библиотекарь  ",16,2,6,1,1,6]
[8,"Педагог-организатор  ",9,null,3,null,3,3]
[9,"Педагог-психолог  ",8,1,1,1,2,3]
[10,"Педагог доп. образования",7,1,3,null,1,2]
[12,"Социальный педагог  ",1,{"$nulls":3},1]
[13,"Воспитатель",26,1,7,null,8,10]
[14,"Старший воспитатель",1,null,1]
[26,"Учитель (предмет не указан)",138,9,25,1,34,69]
[27,"Начальные классы  ",264,65,157,6,9,27]
[28,"Рус.яз. и лит-ра  ",150,47,74,2,8,19]
[29,"Тат.яз и лит  ",175,43,105,4,4,19]
[31,"Чувашский язык  ",1,{"$nulls":4},1]
[33,"Анг.яз.  ",138,22,70,1,21,24]
[34,"Франц.яз.  ",1,{"$nulls":4},1]
[35,"Немец.яз.  ",9,3,4,null,1,1]
[36,"Математика  ",167,28,112,2,10,15]
[37,"Информатика и ИКТ  ",32,5,17,1,3,6]
[38,"История и обществознание  ",77,23,38,1,4,11]
[39,"География  ",41,11,20,1,2,7]
[40,"Физика  ",47,16,22,null,1,8]
[41,"Химия  ",27,10,12,null,3,2]
[42,"Биология  ",62,23,28,1,3,7]
[43,"ИЗО  ",20,5,12,null,2,1]
[44,"Музыка  ",27,6,13,null,null,8]
[45,"Технология  ",51,12,27,2,3,7]
[46,"ОБЖ  ",16,5,6,null,1,4]
[47,"Преподаватель-организатор ОБЖ",4,1,2,null,null,1]
[48,"Физ-ра  ",77,16,42,1,7,11]
[49,"Инструктор по физической культуре",1,{"$nulls":4},1]
[51,"ОРКСЭ  ",7,null,7]
[52,"Классный час",2,{"$nulls":3},1,1]
[53,"Музыкальный руководитель",2,null,1,null,1]
[54,"N",150,35,86,2,9,18]
[54,"Руководитель физического воспитания",{"$f":"SUM(D40:H40)","v":1},{"$nulls":3},1]
[null,null,{"$f":"SUM(C3:C40)","v":{"v":1906,"d":"1,906"}}]
["ДОО"]
["№","Предмет","Всего","ВКК","I КК","II КК","без КК","N"]
[1,"Заведующий   ",{"$f":"SUM(D44:H44)","v":47},4,13,null,12,18]
[3,"Заместитель",{"$f":"SUM(D45:H45)","v":3},null,1,null,null,2]
[5,"Заместитель заведующего",1,{"$nulls":4},1]
[6,"Воспитатель  ",791,78,383,7,147,176]
[7,"Дошкольник",1,{"$nulls":4},1]
[8,"Инструктор по физ.культуре  ",26,2,11,null,3,10]
[11,"Методист  ",6,2,2,null,null,2]
[12,"Муз. руководитель   ",53,14,28,null,6,5]
[15,"Педагог-психолог  ",15,2,5,1,4,3]
[19,"Старший воспитатель  ",34,10,15,null,4,5]
[20,"Учитель",1,{"$nulls":4},1]
[24,"Учитель-логопед  ",{"$f":"SUM(D55:H55)","v":14},6,3,null,1,4]
[25,"N",{"$f":"SUM(D56:H56)","v":6},{"$nulls":3},2,4]
[26,"Тренер-преподаватель",{"$f":"SUM(D57:H57)","v":2},null,1,null,null,1]
[null,null,{"$f":"SUM(C44:C57)","v":{"v":1000,"d":"1,000"}}]
["ДОД"]
["№","Предмет","Всего","ВКК","I КК","II КК","без КК","N"]
[1,"Директор  ",{"$f":"SUM(D61:H61)","v":5},1,2,null,2]
[2,"Заместитель  ",6,3,2,null,null,1]
[3,"Заместитель директора",1,null,1]
[4,"Заведующий  ",16,5,6,null,1,4]
[5,"Заведующий отделением",7,1,null,null,3,3]
[6,"Заведующий структ. подразделения",2,{"$nulls":4},2]
[7,"Заведующий методическим кабинетом",1,null,1]
[8,"Концертмейстер  ",8,null,4,2,null,2]
[9,"Методист  ",20,null,9,1,5,5]
[10,"Педагог доп.образования  ",141,29,60,3,13,36]
[11,"Педагог-организатор  ",10,3,5,null,null,2]
[12,"Педагог-психолог  ",1,null,1]
[13,"Преподаватель  ",36,12,18,null,null,6]
[14,"Преподаватель ДМШ  ",14,5,7,null,null,2]
[16,"Преподаватель ДШИ",6,1,3,null,1,1]
[19,"Воспитатель",1,1]
[20,"N",3,1,null,null,2]
[null,null,{"$f":"SUM(C61:C77)","v":278}]
["Районные учреждения образования"]
["№","Предмет","Всего","ВКК","I КК","II КК","без КК","N"]
[2,"Заместитель ",{"$f":"SUM(D81:H81)","v":1},1]
[4,"Методист ",7,null,2,null,2,3]
[null,null,{"$f":"SUM(C81:C82)","v":8}]
["ПО"]
["№","Предмет","Всего","ВКК","I КК","II КК","без КК","N"]
[3,"Директор  ",{"$f":"SUM(D86:H86)","v":1},1]
[6,"Заведующий отделением  ",1,{"$nulls":4},1]
[9,"Заместитель",4,null,1,null,null,3]
[10,"Заместитель директора ",7,null,2,null,2,3]
[12,"Мастер производ.обучения ",37,4,13,2,5,13]
[13,"Методист ",1,{"$nulls":4},1]
[19,"Педагог-психолог  ",1,{"$nulls":3},1]
[21,"Преподаватель  ",149,35,40,2,25,47]
[null,"Учитель",1,{"$nulls":4},1]
[25,"Старший мастер",1,{"$nulls":4},1]
[28,"Руководитель физического воспитания",1,null,1]
[30,"N",4,{"$nulls":3},2,2]
[31,"Специалист",1,{"$nulls":3},1]
[32,"Начальник отдела",{"$f":"SUM(D99:H99)","v":1},1]
[null,null,{"$f":"SUM(C86:C99)","v":210}]
["Прочие\n (детские дома, центры психолого-медико-социального сопровождения, межшкольный учебный комбинат, вечерняя школа закрытого типа)"]
["№","Предмет","Всего","ВКК","I КК","II КК","без КК","N"]
[1,"Воспитатель  ",{"$f":"SUM(D103:H103)","v":1},{"$nulls":3},1]
[8,"Педагог-организатор",1,{"$nulls":4},1]
[10,"Педагог-психолог  ",2,{"$nulls":4},2]
[12,"Социальный педагог  ",1,{"$nulls":4},1]
[null,null,{"$f":"SUM(C103:C106)","v":5}]
[null,null,3407]

{"sheet":"2.6 (2436)","index":7,"n_rows":83,"n_cols":8,"rows_kept":83,"merged":[[0,0,0,7],[37,0,37,7],[48,0,48,7],[63,0,63,7],[67,0,67,5],[78,0,78,7]]}
["2.6 Программа ПК, которая формирует у учителя(педагога) навыки развития у обучающихся метапредметных умений (например, креативность, критическое мышление, умение решать проблемы и др.);"]
["№","Предмет","Всего","ВКК","I КК","II КК","без КК","N"]
[1,"Директор  ",{"$f":"SUM(D3:H3)","v":29},10,10,null,4,5]
[2,"Заместитель директора  ",25,6,13,null,2,4]
[3,"Заместитель",29,12,14,null,2,1]
[7,"Педагог-библиотекарь  ",10,1,4,null,null,5]
[8,"Педагог-организатор  ",17,1,5,null,4,7]
[9,"Педагог-психолог  ",4,1,1,null,1,1]
[10,"Педагог доп. образования",6,null,2,null,2,2]
[12,"Социальный педагог  ",2,1,{"$nulls":3},1]
[13,"Воспитатель",22,1,5,2,5,9]
[17,"Мастер производственного обучения",1,null,1]
[26,"Учитель (предмет не указан)",116,10,24,null,30,52]
[27,"Начальные классы  ",466,113,279,5,21,48]
[28,"Рус.яз. и лит-ра  ",166,68,83,1,6,8]
[29,"Тат.яз и лит  ",183,47,102,6,4,24]
[31,"Чувашский язык  ",2,null,2]
[33,"Анг.яз.  ",120,20,64,1,9,26]
[35,"Немец.яз.  ",2,null,1,null,null,1]
[36,"Математика  ",143,37,84,2,5,15]
[37,"Информатика и ИКТ  ",27,8,15,1,1,2]
[38,"История и обществознание  ",89,29,39,1,4,16]
[39,"География  ",49,9,33,2,null,5]
[40,"Физика  ",42,11,21,1,3,6]
[41,"Химия  ",26,10,10,1,3,2]
[42,"Биология  ",65,20,35,null,3,7]
[43,"ИЗО  ",25,5,13,3,null,4]
[44,"Музыка  ",16,5,9,null,null,2]
[45,"Технология  ",35,3,22,2,3,5]
[46,"ОБЖ  ",23,5,14,null,1,3]
[47,"Преподаватель-организатор ОБЖ",3,2,1]
[48,"Физ-ра  ",49,13,26,1,2,7]
[51,"ОРКСЭ  ",5,null,4,null,1]
[52,"Классный час",1,{"$nulls":4},1]
[53,"Музыкальный руководитель",1,{"$nulls":4},1]
[54,"N",164,46,85,2,13,18]
[null,null,{"$f":"SUM(C3:C36)","v":{"v":1963,"d":"1,963"}}]
["ДОО"]
["№","Предмет","Всего","ВКК","I КК","II КК","без КК","N"]
[1,"Заведующий   ",{"$f":"SUM(D40:H40)","v":20},4,8,null,4,4]
[6,"Воспитатель  ",{"$f":"SUM(D41:H41)","v":283},27,128,1,49,78]
[8,"Инструктор по физ.культуре  ",6,1,2,null,1,2]
[12,"Муз. руководитель   ",16,3,7,null,2,4]
[15,"Педагог-психолог  ",3,null,1,null,1,1]
[19,"Старший воспитатель  ",5,2,3]
[24,"Учитель-логопед  ",2,null,1,null,1]
[25,"N",4,2,{"$nulls":3},2]
[null,null,{"$f":"SUM(C40:C47)","v":339}]
["ДОД"]
["№","Предмет","Всего","ВКК","I КК","II КК","без КК","N"]
[1,"Директор  ",{"$f":"SUM(D51:H51)","v":1},1]
[3,"Заместитель директора",{"$f":"SUM(D52:H52)","v":2},null,1,null,null,1]
[4,"Заведующий  ",2,2]
[5,"Заведующий отделением",2,{"$nulls":3},1,1]
[6,"Заведующий структ.подразделения",2,{"$nulls":3},1,1]
[8,"Концертмейстер  ",2,1,{"$nulls":3},1]
[9,"Методист  ",2,null,1,1]
[10,"Педагог доп.образования  ",41,10,12,2,5,12]
[11,"Педагог-организатор  ",2,1,{"$nulls":3},1]
[13,"Преподаватель  ",7,2,4,null,null,1]
[14,"Преподаватель ДМШ  ",8,3,3,null,1,1]
[16,"Преподаватель ДШИ",5,3,1,null,null,1]
[null,null,{"$f":"SUM(C51:C62)","v":76}]
["Районные учреждения образования",null,null,"ИМЦ, РОО"]
["№","Предмет","Всего","ВКК","I КК","II КК","без КК","N"]
[5,"Старший методист",{"$f":"SUM(D66:H66)","v":4},1,2,null,1]
[null,null,{"$f":"SUM(C66:C66)","v":4}]
["ПО"]
["№","Предмет","Всего","ВКК","I КК","II КК","без КК","N"]
[1,"Воспитатель  ",{"$f":"SUM(D70:H70)","v":1},{"$nulls":3},1]
[3,"Директор  ",{"$f":"SUM(D71:H71)","v":1},1]
[9,"Заместитель",2,1,{"$nulls":3},1]
[10,"Заместитель директора ",2,null,1,null,null,1]
[12,"Мастер производ.обучения ",3,{"$nulls":3},1,2]
[18,"Педагог-организатор  ",1,{"$nulls":4},1]
[19,"Педагог-психолог  ",0]
[21,"Преподаватель  ",43,6,14,1,8,14]
[null,null,{"$f":"SUM(C70:C77)","v":53}]
["Прочие\n (детские дома, центры психолого-медико-социального сопровождения, межшкольный учебный комбинат, вечерняя школа закрытого типа)"]
["№","Предмет","Всего","ВКК","I КК","II КК","без КК","N"]
[14,"Учитель",{"$f":"SUM(D81:H81)","v":1},{"$nulls":3},1]
[null,null,{"$f":"SUM(C81:C81)","v":1}]
[null,null,2436]

{"sheet":"2.7 (611)","index":8,"n_rows":62,"n_cols":8,"rows_kept":62,"merged":[[0,0,0,7],[28,0,28,7],[43,0,43,7],[51,0,51,7],[55,0,55,7]]}
["2.7 Программа ПК, которая формирует у учителя (педагога) навыки работы в поликультурной или многоязычной среде"]
["№","Предмет","Всего","ВКК","I КК","II КК","без КК","N"]
[1,"Директор  ",{"$f":"SUM(D3:H3)","v":2},null,2]
[2,"Заместитель директора  ",4,2,1,null,null,1]
[3,"Заместитель",5,2,3]
[5,"Заведующий отделением",1,null,1]
[7,"Педагог-библиотекарь  ",5,null,2,null,null,3]
[8,"Педагог-организатор  ",3,2,null,null,1]
[12,"Социальный педагог  ",1,{"$nulls":4},1]
[13,"Воспитатель",9,2,3,null,2,2]
[26,"Учитель (предмет не указан)",17,2,3,null,7,5]
[27,"Начальные классы  ",12,1,8,null,null,3]
[28,"Рус.яз. и лит-ра  ",7,4,2,null,1]
[29,"Тат.яз и лит  ",92,18,57,null,6,11]
[30,"Марийский язык ",1,null,1]
[31,"Чувашский язык  ",4,2,2]
[33,"Анг.яз.  ",23,2,14,3,1,3]
[36,"Математика  ",3,1,1,null,null,1]
[37,"Информатика и ИКТ  ",1,null,1]
[38,"История и обществознание  ",1,1]
[39,"География  ",1,null,1]
[43,"ИЗО  ",1,{"$nulls":4},1]
[44,"Музыка  ",3,1,1,null,null,1]
[45,"Технология  ",1,null,1]
[48,"Физ-ра  ",3,1,2]
[51,"ОРКСЭ  ",1,1]
[54,"N",31,9,18,null,null,4]
[null,null,{"$f":"SUM(C3:C27)","v":232}]
["ДОО"]
["№","Предмет","Всего","ВКК","I КК","II КК","без КК","N"]
[1,"Заведующий   ",{"$f":"SUM(D31:H31)","v":5},1,2,null,1,1]
[3,"Заместитель",{"$f":"SUM(D32:H32)","v":2},1,1]
[6,"Воспитатель  ",306,53,139,4,42,68]
[7,"Дошкольник",1,null,1]
[8,"Инструктор по физ.культуре  ",2,1,1]
[12,"Муз. руководитель   ",8,1,3,null,3,1]
[16,"Преподаватель",1,null,null,1]
[17,"Специалист",4,1,1,null,null,2]
[19,"Старший воспитатель  ",5,2,2,null,null,1]
[20,"Учитель",1,{"$nulls":4},1]
[24,"Учитель-логопед  ",1,null,1]
[25,"N",7,null,2,null,2,3]
[null,null,{"$f":"SUM(C31:C42)","v":343}]
["ДОД"]
["№","Предмет","Всего","ВКК","I КК","II КК","без КК","N"]
[5,"Заведующий отделением",{"$f":"SUM(D46:H46)","v":1},1]
[9,"Методист  ",2,{"$nulls":3},1,1]
[10,"Педагог доп.образования  ",6,1,2,null,null,3]
[13,"Преподаватель  ",9,4,4,1]
[16,"Преподаватель ДШИ",2,null,1,null,null,1]
[null,null,{"$f":"SUM(C46:C50)","v":20}]
["Районные учреждения образования"]
["№","Предмет","Всего","ВКК","I КК","II КК","без КК","N"]
[4,"Методист ",2,null,1,null,null,1]
[null,null,2]
["ПО"]
["№","Предмет","Всего","ВКК","I КК","II КК","без КК","N"]
[18,"Педагог-организатор  ",{"$f":"SUM(D58:H58)","v":1},{"$nulls":4},1]
[21,"Преподаватель  ",13,null,8,1,3,1]
[null,null,{"$f":"SUM(C58:C59)","v":14}]
[]
[null,"ИТОГО",611]

{"sheet":"2.8 (801)","index":9,"n_rows":72,"n_cols":8,"rows_kept":72,"merged":[[0,0,0,7],[36,0,36,7],[44,0,44,7],[59,0,59,7],[63,0,63,5]]}
["2.8 Программа ПК, которая формирует у учителя (педагога) навыки в области цифровых технологий применительно к работе учителя (педагога);"]
["№","Предмет","Всего","ВКК","I КК","II КК","без КК","N"]
[1,"Директор  ",{"$f":"SUM(D3:H3)","v":9},2,7]
[2,"Заместитель директора  ",12,3,3,null,2,4]
[3,"Заместитель",10,1,6,null,1,2]
[7,"Педагог-библиотекарь  ",17,1,5,null,1,10]
[8,"Педагог-организатор  ",5,null,2,null,2,1]
[11,"Старший педагог доп.образования",1,1]
[13,"Воспитатель",7,null,3,null,null,4]
[18,"Методист",1,{"$nulls":4},1]
[20,"Тьютор",1,null,1]
[21,"Учитель-дефектолог  ",2,null,1,null,1]
[22,"Учитель-дефектолог (олигофренопедагог)",1,null,1]
[26,"Учитель (предмет не указан)",22,2,4,null,6,10]
[27,"Начальные классы  ",75,12,42,1,8,12]
[28,"Рус.яз. и лит-ра  ",33,13,14,null,3,3]
[29,"Тат.яз и лит  ",43,12,19,2,3,7]
[33,"Анг.яз.  ",43,6,21,null,2,14]
[35,"Немец.яз.  ",2,1,1]
[36,"Математика  ",62,15,34,null,2,11]
[37,"Информатика и ИКТ  ",21,6,8,1,1,5]
[38,"История и обществознание  ",17,2,9,null,null,6]
[39,"География  ",15,3,11,1]
[40,"Физика  ",14,2,9,null,3]
[41,"Химия  ",8,3,5]
[42,"Биология  ",13,5,6,null,1,1]
[43,"ИЗО  ",10,2,6,null,2]
[44,"Музыка  ",8,4,4]
[45,"Технология  ",20,4,9,null,1,6]
[46,"ОБЖ  ",5,null,4,null,null,1]
[47,"Преподаватель-организатор ОБЖ",2,1,1]
[48,"Физ-ра  ",10,3,7]
[51,"ОРКСЭ  ",3,1,2]
[52,"Классный час",1,1]
[54,"N",46,17,24,null,1,4]
[null,null,{"$f":"SUM(C3:C35)","v":539}]
["ДОО"]
["№","Предмет","Всего","ВКК","I КК","II КК","без КК","N"]
[1,"Заведующий   ",{"$f":"SUM(D39:H39)","v":7},null,5,null,null,2]
[6,"Воспитатель  ",{"$f":"SUM(D40:H40)","v":130},8,64,null,19,39]
[12,"Муз. руководитель   ",9,4,2,null,2,1]
[19,"Старший воспитатель  ",5,3,2]
[24,"Учитель-логопед  ",3,1,1,null,1]
[null,null,{"$f":"SUM(C39:C43)","v":154}]
["ДОД"]
["№","Предмет","Всего","ВКК","I КК","II КК","без КК","N"]
[1,"Директор  ",{"$f":"SUM(D47:H47)","v":1},1]
[2,"Заместитель  ",{"$f":"SUM(D48:H48)","v":4},2,2]
[3,"Заместитель директора",1,1]
[4,"Заведующий  ",1,{"$nulls":4},1]
[5,"Заведующий отделением",1,{"$nulls":4},1]
[8,"Концертмейстер  ",1,1]
[9,"Методист  ",1,{"$nulls":4},1]
[10,"Педагог доп.образования  ",20,2,8,1,2,7]
[13,"Преподаватель  ",7,2,4,null,1]
[14,"Преподаватель ДМШ  ",12,4,5,null,1,2]
[16,"Преподаватель ДШИ",1,1]
[18,"Тренер-преподаватель",1,null,1]
[null,null,{"$f":"SUM(C47:C58)","v":51}]
["Районные учреждения образования",null,null,"ИМЦ, РОО"]
["№","Предмет","Всего","ВКК","I КК","II КК","без КК","N"]
[4,"Методист ",{"$f":"SUM(D62:H62)","v":4},null,2,null,1,1]
[null,null,{"$f":"SUM(C62:C62)","v":4}]
["ПО"]
["№","Предмет","Всего","ВКК","I КК","II КК","без КК","N"]
[9,"Заместитель",{"$f":"SUM(D66:H66)","v":3},1,{"$nulls":3},2]
[10,"Заместитель директора ",2,null,1,null,1]
[12,"Мастер производ.обучения ",9,1,4,null,1,3]
[21,"Преподаватель  ",36,7,7,1,11,10]
[30,"N",3,null,null,1,2]
[null,null,{"$f":"SUM(C66:C70)","v":53}]
[null,null,801]

{"sheet":"2.9 (1448)","index":10,"n_rows":88,"n_cols":8,"rows_kept":88,"merged":[[0,0,0,7],[42,0,42,7],[56,0,56,7],[67,0,67,7],[71,0,71,5],[82,0,82,7]]}
["2.9 Программа ПК, которая формирует у учителя (педагога) навыки обучения детей с ограниченными возможностями здоровья (ОВЗ);"]
["№","Предмет","Всего","ВКК","I КК","II КК","без КК","N"]
[1,"Директор  ",{"$f":"SUM(D3:H3)","v":26},7,16,null,null,3]
[2,"Заместитель директора  ",13,3,6,null,1,3]
[3,"Заместитель",20,3,8,null,null,9]
[7,"Педагог-библиотекарь  ",9,null,4,null,null,5]
[8,"Педагог-организатор  ",6,null,1,null,null,5]
[9,"Педагог-психолог  ",11,2,2,null,3,4]
[10,"Педагог доп. образования",2,{"$nulls":3},1,1]
[12,"Социальный педагог  ",6,1,2,null,2,1]
[13,"Воспитатель",81,4,37,2,17,21]
[15,"Специалист  ",1,1]
[17,"Мастер производственного обучения",1,null,1]
[21,"Учитель-дефектолог  ",68,12,40,null,5,11]
[22,"Учитель-дефектолог (олигофренопедагог)",35,3,20,2,3,7]
[23,"Учитель-дефектолог (сурдопедагог)",8,1,4,null,2,1]
[24,"Учитель-дефектолог (тифлопедагог)",1,{"$nulls":3},1]
[25,"Учитель-логопед  ",16,3,10,null,2,1]
[26,"Учитель (предмет не указан)",69,2,12,1,16,38]
[27,"Начальные классы  ",188,40,117,4,9,18]
[28,"Рус.яз. и лит-ра  ",40,6,29,1,null,4]
[29,"Тат.яз и лит  ",45,7,30,1,3,4]
[33,"Анг.яз.  ",20,1,9,1,6,3]
[34,"Франц.яз.  ",1,1]
[36,"Математика  ",33,2,28,null,1,2]
[37,"Информатика и ИКТ  ",7,1,2,null,null,4]
[38,"История и обществознание  ",22,3,17,null,null,2]
[39,"География  ",18,4,9,null,1,4]
[40,"Физика  ",11,2,6,null,null,3]
[41,"Химия  ",6,2,3,null,null,1]
[42,"Биология  ",7,4,3]
[43,"ИЗО  ",7,null,3,3,null,1]
[44,"Музыка  ",7,1,5,null,null,1]
[45,"Технология  ",14,4,5,null,2,3]
[46,"ОБЖ  ",3,null,3]
[47,"Преподаватель-организатор ОБЖ",3,1,1,null,1]
[48,"Физ-ра  ",49,12,26,2,3,6]
[49,"Инструктор по физической культуре",2,null,1,null,null,1]
[51,"ОРКСЭ  ",4,1,3]
[53,"Музыкальный руководитель",1,null,1]
[54,"N",60,10,37,2,6,5]
[null,null,{"$f":"SUM(C3:C41)","v":921}]
["ДОО"]
["№","Предмет","Всего","ВКК","I КК","II КК","без КК","N"]
[1,"Заведующий   ",{"$f":"SUM(D45:H45)","v":27},null,10,null,6,11]
[6,"Воспитатель  ",{"$f":"SUM(D46:H46)","v":262},36,111,3,46,66]
[8,"Инструктор по физ.культуре  ",17,5,4,1,4,3]
[11,"Методист  ",1,null,1]
[12,"Муз. руководитель   ",17,5,4,null,4,4]
[15,"Педагог-психолог  ",28,4,12,null,6,6]
[17,"Специалист",3,null,2,null,null,1]
[19,"Старший воспитатель  ",8,null,6,null,1,1]
[21,"Учитель-дефектолог",11,5,3,null,1,2]
[24,"Учитель-логопед  ",80,21,32,null,13,14]
[25,"N",10,1,5,null,null,4]
[null,null,{"$f":"SUM(C45:C55)","v":464}]
["ДОД"]
["№","Предмет","Всего","ВКК","I КК","II КК","без КК","N"]
[2,"Заместитель  ",{"$f":"SUM(D59:H59)","v":1},{"$nulls":4},1]
[4,"Заведующий  ",1,{"$nulls":4},1]
[5,"Заведующий отделением",1,{"$nulls":4},1]
[9,"Методист  ",2,null,2]
[10,"Педагог доп.образования  ",19,3,7,null,2,7]
[13,"Преподаватель  ",3,1,2]
[14,"Преподаватель ДМШ  ",2,null,2]
[16,"Преподаватель ДШИ",1,null,1]
[null,null,{"$f":"SUM(C59:C66)","v":30}]
["Районные учреждения образования",null,null,"ИМЦ, РОО"]
["№","Предмет","Всего","ВКК","I КК","II КК","без КК","N"]
[3,"Педагог-психолог ",{"$f":"SUM(D70:H70)","v":1},{"$nulls":4},1]
[null,null,{"$f":"SUM(C70:C70)","v":1}]
["ПО"]
["№","Предмет","Всего","ВКК","I КК","II КК","без КК","N"]
[6,"Заведующий отделением  ",{"$f":"SUM(D74:H74)","v":1},null,1]
[12,"Мастер производ.обучения ",7,2,1,null,2,2]
[13,"Методист ",1,1]
[18,"Педагог-организатор  ",1,{"$nulls":3},1]
[19,"Педагог-психолог  ",1,{"$nulls":4},1]
[21,"Преподаватель  ",14,5,2,1,2,4]
[24,"Социальный педагог  ",1,{"$nulls":4},1]
[28,"Руководитель физического воспитания",4,1,2,null,null,1]
[null,null,{"$f":"SUM(C74:C81)","v":30}]
["Прочие\n (детские дома, центры психолого-медико-социального сопровождения, межшкольный учебный комбинат, вечерняя школа закрытого типа)"]
["№","Предмет","Всего","ВКК","I КК","II КК","без КК","N"]
[3,"Замиститель",{"$f":"SUM(D85:H85)","v":1},{"$nulls":4},1]
[16,"Учитель-логопед  ",1,null,1]
[null,null,{"$f":"SUM(C85:C86)","v":2}]
[null,null,1448]

{"sheet":"2.10 (500)","index":11,"n_rows":57,"n_cols":8,"rows_kept":57,"merged":[[0,0,0,7],[31,0,31,7],[42,0,42,7],[51,0,51,5]]}
["2.10 Программа ПК, которая развивает у учителя навыки оценивания обучающихся;"]
["№","Предмет","Всего","ВКК","I КК","II КК","без КК","N"]
[1,"Директор  ",{"$f":"SUM(D3:H3)","v":10},3,7]
[2,"Заместитель директора  ",9,1,4,null,3,1]
[3,"Заместитель",14,4,6,null,null,4]
[7,"Педагог-библиотекарь  ",2,1,1]
[9,"Педагог-психолог  ",2,{"$nulls":4},2]
[10,"Педагог доп. образования",2,1,1]
[13,"Воспитатель",4,1,null,null,1,2]
[26,"Учитель (предмет не указан)",39,null,8,1,11,19]
[27,"Начальные классы  ",128,34,71,2,5,16]
[28,"Рус.яз. и лит-ра  ",20,2,14,null,null,4]
[29,"Тат.яз и лит  ",25,2,16,1,1,5]
[31,"Чувашский язык  ",2,null,1,null,1]
[33,"Анг.яз.  ",13,1,6,null,3,3]
[35,"Немец.яз.  ",2,null,2]
[36,"Математика  ",35,10,16,2,1,6]
[37,"Информатика и ИКТ  ",4,null,3,null,null,1]
[38,"История и обществознание  ",15,5,5,null,1,4]
[39,"География  ",10,null,4,1,null,5]
[40,"Физика  ",4,2,null,2]
[41,"Химия  ",2,null,2]
[42,"Биология  ",5,2,3]
[43,"ИЗО  ",1,{"$nulls":3},1]
[44,"Музыка  ",2,1,{"$nulls":3},1]
[45,"Технология  ",9,4,4,null,null,1]
[46,"ОБЖ  ",4,null,3,null,null,1]
[48,"Физ-ра  ",13,2,8,2,1]
[51,"ОРКСЭ  ",3,null,3]
[54,"N",39,9,27,null,1,2]
[null,null,{"$f":"SUM(C3:C30)","v":418}]
["ДОО"]
["№","Предмет","Всего","ВКК","I КК","II КК","без КК","N"]
[1,"Заведующий   ",{"$f":"SUM(D34:H34)","v":3},1,1,null,null,1]
[2,"Директор ",{"$f":"SUM(D35:H35)","v":1},null,1]
[6,"Воспитатель  ",31,2,16,null,8,5]
[8,"Инструктор по физ.культуре  ",1,{"$nulls":4},1]
[12,"Муз. руководитель   ",2,null,1,null,null,1]
[19,"Старший воспитатель  ",1,{"$nulls":3},1]
[20,"Учитель",1,{"$nulls":4},1]
[25,"N",1,1]
[null,null,{"$f":"SUM(C34:C41)","v":41}]
["ДОД"]
["№","Предмет","Всего","ВКК","I КК","II КК","без КК","N"]
[2,"Заместитель  ",{"$f":"SUM(D45:H45)","v":2},1,{"$nulls":3},1]
[9,"Методист  ",2,{"$nulls":3},1,1]
[10,"Педагог доп.образования  ",13,3,2,null,2,6]
[14,"Преподаватель ДМШ  ",4,{"$nulls":4},4]
[16,"Преподаватель ДШИ",2,1,1]
[18,"Воспитатель",1,null,1]
[null,null,{"$f":"SUM(C45:C50)","v":24}]
["ПО"]
["№","Предмет","Всего","ВКК","I КК","II КК","без КК","N"]
[12,"Мастер производ.обучения ",{"$f":"SUM(D54:H54)","v":5},null,2,null,2,1]
[21,"Преподаватель  ",12,4,1,null,3,4]
[null,null,{"$f":"SUM(C54:C55)","v":17}]
[null,null,500]

{"sheet":"2.11 (125)","index":12,"n_rows":52,"n_cols":8,"rows_kept":52,"merged":[[0,0,0,7],[25,0,25,7],[33,0,33,7],[40,0,40,7],[44,0,44,5]]}
["2.11 Программа ПК по подготовке тьюторов в области цифровых технологий; Программа ПК по подготовке тьюторов в области цифровых технологий."]
["№","Предмет","Всего","ВКК","I КК","II КК","без КК","N"]
[1,"Директор  ",{"$f":"SUM(D3:H3)","v":2},1,1]
[2,"Заместитель директора  ",4,2,2]
[3,"Заместитель",5,1,3,null,null,1]
[7,"Педагог-библиотекарь  ",2,{"$nulls":4},2]
[13,"Воспитатель",3,null,1,null,2]
[25,"Учитель-логопед  ",2,null,1,null,1]
[26,"Учитель (предмет не указан)",6,1,null,null,3,2]
[27,"Начальные классы  ",9,4,3,null,1,1]
[28,"Рус.яз. и лит-ра  ",5,3,1,null,null,1]
[29,"Тат.яз и лит  ",2,1,1]
[33,"Анг.яз.  ",5,2,2,null,null,1]
[36,"Математика  ",5,2,2,null,null,1]
[37,"Информатика и ИКТ  ",12,2,6,null,2,2]
[38,"История и обществознание  ",2,1,1]
[39,"География  ",0]
[40,"Физика  ",4,1,3]
[42,"Биология  ",2,null,2]
[44,"Музыка  ",1,null,1]
[45,"Технология  ",3,1,{"$nulls":3},2]
[46,"ОБЖ  ",1,null,1]
[48,"Физ-ра  ",1,null,1]
[54,"N",8,1,4,null,1,2]
[null,null,{"$f":"SUM(C3:C24)","v":84}]
["ДОО"]
["№","Предмет","Всего","ВКК","I КК","II КК","без КК","N"]
[1,"Заведующий   ",{"$f":"SUM(D28:H28)","v":1},null,1]
[6,"Воспитатель  ",{"$f":"SUM(D29:H29)","v":20},1,14,null,1,4]
[12,"Муз. руководитель   ",3,1,2]
[19,"Старший воспитатель  ",1,null,1]
[24,"Учитель-логопед  ",1,null,1]
[null,null,{"$f":"SUM(C28:C32)","v":26}]
["ДОД"]
["№","Предмет","Всего","ВКК","I КК","II КК","без КК","N"]
[2,"Заместитель  ",{"$f":"SUM(D36:H36)","v":1},{"$nulls":4},1]
[4,"Заведующий  ",2,{"$nulls":4},2]
[9,"Методист  ",2,{"$nulls":4},2]
[10,"Педагог доп.образования  ",2,null,null,1,null,1]
[null,null,{"$f":"SUM(C36:C39)","v":7}]
["Районные учреждения образования",null,null,"ИМЦ, РОО"]
["№","Предмет","Всего","ВКК","I КК","II КК","без КК","N"]
[4,"Методист ",{"$f":"SUM(D43:H43)","v":2},null,1,null,null,1]
[null,null,{"$f":"SUM(C43:C43)","v":2}]
["ПО"]
["№","Предмет","Всего","ВКК","I КК","II КК","без КК","N"]
[4,"Заведующий  ",{"$f":"SUM(D47:H47)","v":2},1,{"$nulls":3},1]
[12,"Мастер производ.обучения ",1,null,1]
[16,"Педагог доп.образования  ",1,{"$nulls":4},1]
[21,"Преподаватель  ",2,1,1]
[null,null,{"$f":"SUM(C47:C50)","v":6}]
[null,null,125]

{"sheet":"2.12 (283)","index":13,"n_rows":65,"n_cols":8,"rows_kept":65,"merged":[[0,0,0,7],[25,0,25,7],[37,0,37,7],[49,0,49,7],[53,0,53,5],[60,0,60,7]]}
["2.12 Дистанционная программа ПК для отдельных категорий участников: старших воспитателей, учителей обществознания, географии, педагогов ДОД;"]
["№","Предмет","Всего","ВКК","I КК","II КК","без КК","N"]
[1,"Директор  ",{"$f":"SUM(D3:H3)","v":1},{"$nulls":4},1]
[2,"Заместитель директора  ",3,null,1,null,1,1]
[3,"Заместитель",1,1]
[7,"Педагог-библиотекарь  ",4,null,null,1,null,3]
[8,"Педагог-организатор  ",4,null,3,null,null,1]
[10,"Педагог доп. образования",5,null,2,null,1,2]
[13,"Воспитатель",11,null,4,2,2,3]
[26,"Учитель (предмет не указан)",5,1,2,null,2]
[27,"Начальные классы  ",1,null,1]
[28,"Рус.яз. и лит-ра  ",2,1,1]
[29,"Тат.яз и лит  ",6,1,3,1,null,1]
[33,"Анг.яз.  ",2,null,1,null,null,1]
[36,"Математика  ",1,1]
[38,"История и обществознание  ",20,6,10,null,null,4]
[39,"География  ",18,3,12,null,1,2]
[40,"Физика  ",1,{"$nulls":3},1]
[41,"Химия  ",2,{"$nulls":3},1,1]
[42,"Биология  ",2,null,1,null,null,1]
[44,"Музыка  ",3,null,2,null,null,1]
[45,"Технология  ",2,null,1,null,null,1]
[50,"Тренер-преподаватель",1,{"$nulls":4},1]
[54,"N",13,1,9,null,1,2]
[null,null,{"$f":"SUM(C3:C24)","v":108}]
["ДОО"]
["№","Предмет","Всего","ВКК","I КК","II КК","без КК","N"]
[1,"Заведующий   ",{"$f":"SUM(D28:H28)","v":9},1,5,null,2,1]
[3,"Заместитель",{"$f":"SUM(D29:H29)","v":4},1,2,null,null,1]
[6,"Воспитатель  ",31,6,14,1,1,9]
[8,"Инструктор по физ.культуре  ",1,{"$nulls":4},1]
[11,"Методист  ",8,5,3]
[13,"Педагог дополнительного образования",1,null,1]
[15,"Педагог-психолог  ",1,null,1]
[19,"Старший воспитатель  ",52,16,28,1,null,7]
[25,"N",2,1,{"$nulls":3},1]
[null,null,{"$f":"SUM(C28:C36)","v":109}]
["ДОД"]
["№","Предмет","Всего","ВКК","I КК","II КК","без КК","N"]
[1,"Директор  ",{"$f":"SUM(D40:H40)","v":3},3]
[2,"Заместитель  ",{"$f":"SUM(D41:H41)","v":2},null,1,null,null,1]
[5,"Заведующий отделением",1,{"$nulls":4},1]
[9,"Методист  ",8,1,2,null,null,5]
[10,"Педагог доп.образования  ",29,8,13,null,4,4]
[11,"Педагог-организатор  ",1,{"$nulls":4},1]
[13,"Преподаватель  ",2,null,1,null,null,1]
[14,"Преподаватель ДМШ  ",4,1,1,null,null,2]
[19,"N",1,1]
[null,null,{"$f":"SUM(C40:C48)","v":51}]
["Районные учреждения образования",null,null,"ИМЦ, РОО"]
["№","Предмет","Всего","ВКК","I КК","II КК","без КК","N"]
[4,"Методист ",{"$f":"SUM(D52:H52)","v":2},null,1,null,null,1]
[null,null,{"$f":"SUM(C52:C52)","v":2}]
["ПО"]
["№","Предмет","Всего","ВКК","I КК","II КК","без КК","N"]
[1,"Воспитатель  ",{"$f":"SUM(D56:H56)","v":5},null,2,null,1,2]
[12,"Мастер производ.обучения ",{"$f":"SUM(D57:H57)","v":1},null,1]
[16,"Педагог доп.образования  ",2,null,2]
[21,"Преподаватель  ",4,null,1,null,3]
[null,null,{"$f":"SUM(C56:C59)","v":12}]
["Прочие\n (детские дома, центры психолого-медико-социального сопровождения, межшкольный учебный комбинат, вечерняя школа закрытого типа)"]
["№","Предмет","Всего","ВКК","I КК","II КК","без КК","N"]
[1,"Воспитатель  ",{"$f":"SUM(D63:H63)","v":1},{"$nulls":4},1]
[null,null,{"$f":"SUM(C63:C63)","v":1}]
[null,null,283]

{"sheet":"2.13 (1733)","index":14,"n_rows":111,"n_cols":8,"rows_kept":111,"merged":[[0,0,0,7],[36,0,36,7],[54,0,54,7],[75,0,75,7],[85,0,85,5],[100,0,100,7]]}
["2.13 Иное"]
["№","Предмет","Всего","ВКК","I КК","II КК","без КК","N"]
[1,"Директор  ",{"$f":"SUM(D3:H3)","v":57},8,32,1,5,11]
[2,"Заместитель директора  ",45,8,20,null,6,11]
[3,"Заместитель",52,13,26,null,2,11]
[7,"Педагог-библиотекарь  ",122,10,29,1,12,70]
[8,"Педагог-организатор  ",25,1,14,null,3,7]
[9,"Педагог-психолог  ",16,1,7,null,3,5]
[10,"Педагог доп. образования",10,3,3,2,1,1]
[12,"Социальный педагог  ",4,1,1,1,1]
[13,"Воспитатель",67,4,30,2,10,21]
[15,"Специалист  ",1,null,1]
[25,"Учитель-логопед  ",1,null,1]
[26,"Учитель (предмет не указан)",29,1,9,null,7,12]
[27,"Начальные классы  ",18,3,9,1,3,2]
[28,"Рус.яз. и лит-ра  ",18,3,13,null,1,1]
[29,"Тат.яз и лит  ",34,5,25,1,1,2]
[33,"Анг.яз.  ",10,null,6,1,1,2]
[36,"Математика  ",12,1,11]
[37,"Информатика и ИКТ  ",2,null,1,null,1]
[38,"История и обществознание  ",10,1,7,null,null,2]
[39,"География  ",7,null,4,null,2,1]
[40,"Физика  ",5,null,3,null,2]
[41,"Химия  ",3,1,1,null,null,1]
[42,"Биология  ",7,2,5]
[43,"ИЗО  ",2,null,2]
[44,"Музыка  ",3,1,1,null,null,1]
[45,"Технология  ",12,1,9,1,1]
[46,"ОБЖ  ",3,null,2,null,null,1]
[47,"Преподаватель-организатор ОБЖ",4,1,1,1,null,1]
[48,"Физ-ра  ",12,2,8,null,null,2]
[49,"Инструктор по физической культуре",1,null,1]
[52,"Классный час",2,null,2]
[53,"Музыкальный руководитель",2,null,2]
[54,"N",48,8,27,3,1,9]
[null,null,{"$f":"SUM(C3:C35)","v":644}]
["ДОО"]
["№","Предмет","Всего","ВКК","I КК","II КК","без КК","N"]
[1,"Заведующий   ",{"$f":"SUM(D39:H39)","v":95},6,49,2,11,27]
[2,"Директор ",{"$f":"SUM(D40:H40)","v":1},{"$nulls":4},1]
[5,"Заместитель заведующего",1,{"$nulls":4},1]
[6,"Воспитатель  ",522,53,259,5,68,137]
[7,"Дошкольник",1,{"$nulls":4},1]
[8,"Инструктор по физ.культуре  ",22,3,8,null,4,7]
[9,"Тренер-преподаватель",1,null,1]
[11,"Методист  ",2,null,1,null,null,1]
[12,"Муз. руководитель   ",64,6,35,null,5,18]
[15,"Педагог-психолог  ",10,1,4,null,1,4]
[17,"Специалист",1,null,1]
[19,"Старший воспитатель  ",13,4,7,null,1,1]
[20,"Учитель",3,null,1,1,1]
[24,"Учитель-логопед  ",13,3,5,null,2,3]
[25,"N",11,null,3,1,6,1]
[null,null,{"$f":"SUM(C39:C53)","v":760}]
["ДОД"]
["№","Предмет","Всего","ВКК","I КК","II КК","без КК","N"]
[1,"Директор  ",{"$f":"SUM(D57:H57)","v":11},3,3,null,2,3]
[2,"Заместитель  ",{"$f":"SUM(D58:H58)","v":9},null,5,null,null,4]
[3,"Заместитель директора",6,1,1,null,1,3]
[4,"Заведующий  ",3,2,{"$nulls":3},1]
[5,"Заведующий отделением",1,{"$nulls":4},1]
[6,"Заведующий структ.подразделения",6,null,1,null,null,5]
[7,"Заведующий метод.кабинетом",1,{"$nulls":4},1]
[8,"Концертмейстер  ",5,2,2,null,null,1]
[9,"Методист  ",25,4,7,null,6,8]
[10,"Педагог доп.образования  ",77,18,28,null,4,27]
[11,"Педагог-организатор  ",10,null,3,null,4,3]
[12,"Педагог-психолог  ",0]
[13,"Преподаватель  ",19,4,10,1,1,3]
[14,"Преподаватель ДМШ  ",11,3,5,null,2,1]
[16,"Преподаватель ДШИ",14,7,5,null,1,1]
[17,"Учитель",1,{"$nulls":3},1]
[19,"Воспитатель",1,null,1]
[20,"Педагог-библиотекарь",1,{"$nulls":3},1]
[null,null,{"$f":"SUM(C57:C74)","v":201}]
["Районные учреждения образования",null,null,"ИМЦ, РОО"]
["№","Предмет","Всего","ВКК","I КК","II КК","без КК","N"]
[2,"Заместитель ",{"$f":"SUM(D78:H78)","v":2},null,1,null,null,1]
[null,"Заместитель начальника",{"$f":"SUM(D79:H79)","v":1},{"$nulls":4},1]
[null,"Начальник отдела",1,{"$nulls":4},1]
[4,"Методист ",48,10,17,2,9,10]
[6,"Специалист ",1,{"$nulls":4},1]
[8,"Главный специалист",1,{"$nulls":3},1]
[null,"N",2,null,2]
[null,null,{"$f":"SUM(C78:C84)","v":56}]
["ПО"]
["№","Предмет","Всего","ВКК","I КК","II КК","без КК","N"]
[3,"Директор  ",{"$f":"SUM(D88:H88)","v":2},1,null,null,1]
[6,"Заведующий отделением  ",1,{"$nulls":3},1]
[9,"Заместитель",3,2,{"$nulls":3},1]
[10,"Заместитель директора ",1,null,1]
[12,"Мастер производ.обучения ",11,2,4,null,1,4]
[13,"Методист ",1,{"$nulls":3},1]
[16,"Педагог доп.образования  ",1,{"$nulls":3},1]
[18,"Педагог-организатор  ",1,null,null,1]
[19,"Педагог-психолог  ",1,null,1]
[21,"Преподаватель  ",20,5,7,null,3,5]
[28,"Руководитель физ. воспитания",1,1]
[30,"N",1,{"$nulls":4},1]
[null,null,{"$f":"SUM(C88:C99)","v":44}]
["Прочие\n (детские дома, центры психолого-медико-социального сопровождения, межшкольный учебный комбинат, вечерняя школа закрытого типа)"]
["№","Предмет","Всего","ВКК","I КК","II КК","без КК","N"]
[1,"Воспитатель  ",{"$f":"SUM(D103:H103)","v":12},1,5,null,1,5]
[3,"Замиститель",{"$f":"SUM(D104:H104)","v":1},null,1]
[10,"Педагог-психолог  ",9,3,1,null,2,3]
[12,"Социальный педагог  ",3,null,1,1,null,1]
[14,"Учитель",1,null,1]
[16,"Учитель-логопед  ",1,{"$nulls":3},1]
[17,"N",1,{"$nulls":4},1]
[null,null,{"$f":"SUM(C103:C109)","v":28}]
[null,null,1733]